[Event "ESCC-65 2022"]
[Site "Lublin"]
[Date "2022.07.09"]
[Round "5.11"]
[White "Stokes, Michael"]
[Black "Gromowski, Stanislaw"]
[Result "1-0"]
[ECO "B20"]
[WhiteElo "2024"]
[BlackElo "1613"]
[Annotator "NA RC"]
[PlyCount "57"]
[EventDate "2022.07.05"]
[EventType "swiss"]
[EventCountry "POL"]
[SourceTitle "playchess.com"]
[Source "ChessBase"]
[SourceQuality "1"]
[TimeControl "40/5400+30:1800+30"]

1. e4 {[%emt 0:00:03]} c5 {[%emt 0:00:39]} 2. d4 {[%emt 0:00:05]} e6 {[%emt 0:00:48]} 3. d5 {[%emt 0:00:48]} exd5 {[%emt 0:02:19]} 4. exd5 {[%emt 0:00:06]} d6 {[%emt 0:00:16]} 5. Nf3 {[%emt 0:01:34]} Be7 {[%emt 0:00:46]} 6. Bd3 {[%emt 0:00:52]} Nf6 {[%emt 0:00:55]} 7. c4 {[%emt 0:00:23]} O-O {[%emt 0:01:05]} 8. O-O {[%emt 0:01:53]} Bg4 {[%emt 0:00:09]} 9. h3 {[%emt 0:00:08]} Bh5 {[%emt 0:00:25]} 10. Nc3 {[%emt 0:00:25]} Nbd7 {[%emt 0:00:26]} 11. g4 {[%emt 0:03:44]} Bg6 {[%emt 0:00:11]} 12. Bf4 {[%emt 0:01:47]} Bxd3 {[%emt 0:00:46]} 13. Qxd3 {[%emt 0:00:07]} Ne8 {[%emt 0:00:33]} 14. Rfe1 {[%emt 0:04:36]} a6 {[%emt 0:07:01]} 15. a4 {[%emt 0:03:56]} Nef6 {[%emt 0:04:24]} 16. Re2 {[%emt 0:02:59]} Re8 {[%emt 0:00:24]} 17. Rae1 {[%emt 0:23:34]} Bf8 {[%emt 0:03:18]} 18. Rxe8 {[%emt 0:03:09]} Nxe8 {[%emt 0:00:22]} 19. Ng5 {[%emt 0:06:49]} Ndf6 {[%emt 0:01:07]} 20. Qg3 {[%emt 0:02:00]} h6 {[%emt 0:02:02]} 21. Nge4 {[%emt 0:02:08]} Qb6 {[%emt 0:02:43]} 22. g5 {[%emt 0:02:37]} Nh5 {[%emt 0:00:51]} 23. Qf3 {[%emt 0:01:19]} Nxf4 {[%emt 0:00:17]} 24. Qxf4 {[%emt 0:00:05]} hxg5 {[%emt 0:00:36]} 25. Nxg5 {[%emt 0:00:50]} Nf6 {[%emt 0:01:12]} 26. Nce4 {[%emt 0:03:09]} Qd8 {[%emt 0:02:35]} 27. Qh4 {[%emt 0:00:56]} g6 {[%emt 0:04:17]} 28. Nxf6+ {[%emt 0:00:06]} Kg7 {[%emt 0:00:12]} 29. Nge4 {[%emt 0:01:12]} 1-0

[Event "ESCC-65 2022"]
[Site "Lublin"]
[Date "2022.07.09"]
[Round "5.12"]
[White "Berkley, Stephen W"]
[Black "Kasprzyk, Irena"]
[Result "1/2-1/2"]
[ECO "A41"]
[WhiteElo "1525"]
[BlackElo "2017"]
[Annotator "NA RC"]
[PlyCount "67"]
[EventDate "2022.07.05"]
[EventType "swiss"]
[EventCountry "POL"]
[SourceTitle "playchess.com"]
[Source "ChessBase"]
[SourceQuality "1"]
[TimeControl "40/5400+30:1800+30"]

1. d4 {[%emt 0:00:06]} d6 {[%emt 0:00:14]} 2. g3 {[%emt 0:00:22]} g6 {[%emt 0:00:10]} 3. Bg2 {[%emt 0:00:22]} c6 {[%emt 0:00:12]} 4. Nf3 {[%emt 0:00:39]} Bg7 {[%emt 0:00:12]} 5. O-O {[%emt 0:01:24]} Nd7 {[%emt 0:00:16]} 6. c4 {[%emt 0:05:32]} Qc7 {[%emt 0:01:01]} 7. Nc3 {[%emt 0:08:13]} Ngf6 {[%emt 0:00:30]} 8. e4 {[%emt 0:00:28]} e5 {[%emt 0:00:17]} 9. Rb1 {[%emt 0:01:20]} O-O {[%emt 0:01:41]} 10. h3 {[%emt 0:02:39]} Re8 {[%emt 0:00:50]} 11. Re1 {[%emt 0:02:54]} a6 {[%emt 0:00:53]} 12. a4 {[%emt 0:03:05]} Rb8 {[%emt 0:06:25]} 13. Be3 {[%emt 0:08:18]} c5 {[%emt 0:06:09]} 14. dxe5 {[%emt 0:09:46]} dxe5 {[%emt 0:01:48]} 15. Qc2 {[%emt 0:02:08]} b6 {[%emt 0:00:29]} 16. Rbd1 {[%emt 0:10:37]} Bb7 {[%emt 0:02:11]} 17. Nd5 {[%emt 0:08:04]} Bxd5 {[%emt 0:01:30]} 18. cxd5 {[%emt 0:00:22]} Qd6 {[%emt 0:01:10]} 19. Bf1 {[%emt 0:02:32]} b5 {[%emt 0:01:08]} 20. axb5 {[%emt 0:00:20]} axb5 {[%emt 0:00:12]} 21. b3 {[%emt 0:03:19]} Rec8 {[%emt 0:03:05]} 22. Nd2 {[%emt 0:01:49]} Ne8 {[%emt 0:00:39]} 23. Bd3 {[%emt 0:02:02]} Qc7 {[%emt 0:00:58]} 24. Ra1 {[%emt 0:03:01]} Nd6 {[%emt 0:00:15]} 25. Rec1 {[%emt 0:01:26]} f5 {[%emt 0:03:26]} 26. Ra6 {[%emt 0:00:52]} fxe4 {[%emt 0:05:29]} 27. Bxe4 {[%emt 0:03:54]} Nf6 {[%emt 0:04:03]} 28. Rc6 {[%emt 0:02:53]} Qd7 {[%emt 0:00:38]} 29. Bxc5 {[%emt 0:03:58]} Ndxe4 {[%emt 0:00:30]} 30. Nxe4 {[%emt 0:00:15]} Rxc6 {[%emt 0:02:46]} 31. dxc6 {[%emt 0:01:00]} Qxc6 {[%emt 0:00:16]} 32. Bd6 {[%emt 0:01:11]} Qxc2 {[%emt 0:01:27]} 33. Nxf6+ {[%emt 0:00:05]} Bxf6 {[%emt 0:00:20]} 34. Rxc2 {[%emt 0:00:05]} 1/2-1/2

[Event "ESCC-65 2022"]
[Site "Lublin"]
[Date "2022.07.09"]
[Round "5.13"]
[White "Patola, Eero"]
[Black "Rak, Tomasz"]
[Result "0-1"]
[ECO "B16"]
[WhiteElo "1810"]
[BlackElo "1887"]
[Annotator "NA RC"]
[PlyCount "86"]
[EventDate "2022.07.05"]
[EventType "swiss"]
[EventCountry "POL"]
[SourceTitle "playchess.com"]
[Source "ChessBase"]
[SourceQuality "1"]
[TimeControl "40/5400+30:1800+30"]

1. e4 {[%emt 0:00:18]} c6 {[%emt 0:00:01]} 2. d4 {[%emt 0:00:18]} d5 {[%emt 0:00:02]} 3. Nd2 {[%emt 0:00:26]} dxe4 {[%emt 0:00:05]} 4. Nxe4 {[%emt 0:00:26]} Nf6 {[%emt 0:00:03]} 5. Nxf6+ {[%emt 0:01:11]} gxf6 {[%emt 0:00:02]} 6. h3 {[%emt 0:01:00]} Bf5 {[%emt 0:01:45]} 7. c3 {[%emt 0:02:08]} Qc7 {[%emt 0:00:55]} 8. Nf3 {[%emt 0:01:12]} Nd7 {[%emt 0:01:08]} 9. Bd3 {[%emt 0:01:54]} Bg6 {[%emt 0:01:03]} 10. Bxg6 {[%emt 0:01:38]} hxg6 {[%emt 0:00:03]} 11. Be3 {[%emt 0:04:30]} Nb6 {[%emt 0:01:33]} 12. Qe2 {[%emt 0:05:55]} Nd5 {[%emt 0:04:17]} 13. Bd2 {[%emt 0:01:26]} Nf4 {[%emt 0:02:23]} 14. Bxf4 {[%emt 0:01:32]} Qxf4 {[%emt 0:00:02]} 15. Qe3 {[%emt 0:03:20]} Qf5 {[%emt 0:00:17]} 16. Rd1 {[%emt 0:02:57]} g5 {[%emt 0:03:20]} 17. g4 {[%emt 0:06:02]} Qa5 {[%emt 0:01:21]} 18. a3 {[%emt 0:01:16]} O-O-O {[%emt 0:01:05]} 19. Kf1 {[%emt 0:01:21]} e6 {[%emt 0:00:49]} 20. Kg2 {[%emt 0:00:59]} Bd6 {[%emt 0:00:51]} 21. Qe2 {[%emt 0:02:41]} Kb8 {[%emt 0:02:51]} 22. c4 {[%emt 0:02:18]} Bf4 {[%emt 0:01:14]} 23. Qc2 {[%emt 0:07:13]} Rd7 {[%emt 0:03:25]} 24. Rd3 {[%emt 0:03:36]} Rhd8 {[%emt 0:01:29]} 25. b4 {[%emt 0:02:50]} Qc7 {[%emt 0:00:08]} 26. Rhd1 {[%emt 0:03:54]} Rd6 {[%emt 0:04:45]} 27. Qb3 {[%emt 0:09:22]} Qd7 {[%emt 0:00:32]} 28. a4 {[%emt 0:07:44]} f5 {[%emt 0:00:40]} 29. gxf5 {[%emt 0:01:12]} exf5 {[%emt 0:02:45]} 30. d5 {[%emt 0:03:43]} g4 {[%emt 0:01:49]} 31. hxg4 {[%emt 0:01:40]} fxg4 32. Ne1 {[%emt 0:02:11]} f5 {[%emt 0:06:02]} 33. Nc2 {[%emt 0:02:06]} Qh7 {[%emt 0:04:36]} 34. Rh1 {[%emt 0:04:56]} Rh6 {[%emt 0:00:28]} 35. Rxh6 {[%emt 0:03:16]} Qxh6 {[%emt 0:00:05]} 36. dxc6 {[%emt 0:02:35]} Re8 {[%emt 0:06:10]} 37. Rg3 {[%emt 0:02:03]} Qxc6+ {[%emt 0:02:30]} 38. Kf1 {[%emt 0:03:08]} Bxg3 {[%emt 0:01:40]} 39. Qxg3+ {[%emt 0:00:14]} Qc7 {[%emt 0:01:34]} 40. Qxc7+ {[%emt 0:00:00]} Kxc7 {[%emt 0:00:00]} 41. Ne3 {[%emt 0:02:03]} Re4 {[%emt 0:05:44]} 42. Ke2 {[%emt 0:02:28]} f4 {[%emt 0:01:24]} 43. Kd3 {[%emt 0:00:08]} fxe3 {[%emt 0:01:10]} 0-1

[Event "ESCC-65 2022"]
[Site "Lublin"]
[Date "2022.07.09"]
[Round "5.14"]
[White "Scowen, Roger S"]
[Black "Chubar, Vladimir"]
[Result "0-1"]
[ECO "B06"]
[WhiteElo "1864"]
[BlackElo "1809"]
[Annotator "NA RC"]
[PlyCount "94"]
[EventDate "2022.07.05"]
[EventType "swiss"]
[EventCountry "POL"]
[SourceTitle "playchess.com"]
[Source "ChessBase"]
[SourceQuality "1"]
[TimeControl "40/5400+30:1800+30"]

1. e4 {[%emt 0:00:07]} g6 {[%emt 0:01:03]} 2. d4 {[%emt 0:00:31]} Bg7 {[%emt 0:00:09]} 3. f4 {[%emt 0:02:59]} d5 {[%emt 0:01:52]} 4. e5 {[%emt 0:01:43]} h5 {[%emt 0:00:44]} 5. Nf3 {[%emt 0:01:17]} Bg4 {[%emt 0:00:57]} 6. Be3 {[%emt 0:02:42]} Nh6 {[%emt 0:03:09]} 7. Nbd2 {[%emt 0:01:44]} Nf5 {[%emt 0:02:16]} 8. Bf2 {[%emt 0:00:44]} e6 {[%emt 0:01:53]} 9. h3 {[%emt 0:01:16]} Bxf3 {[%emt 0:00:53]} 10. Nxf3 {[%emt 0:00:23]} Nc6 {[%emt 0:04:33]} 11. c3 {[%emt 0:01:07]} a6 {[%emt 0:02:07]} 12. Qd2 {[%emt 0:04:51]} Qd7 {[%emt 0:01:54]} 13. O-O-O {[%emt 0:03:31]} h4 {[%emt 0:04:17]} 14. Bd3 {[%emt 0:02:38]} Nce7 {[%emt 0:03:18]} 15. Kb1 {[%emt 0:03:23]} b5 {[%emt 0:01:15]} 16. Qe1 {[%emt 0:08:08]} Bh6 {[%emt 0:10:37]} 17. Bxh4 {[%emt 0:13:07]} Nxh4 {[%emt 0:04:08]} 18. Qxh4 {[%emt 0:01:08]} Bg7 {[%emt 0:00:49]} 19. Qf2 {[%emt 0:01:25]} a5 {[%emt 0:00:19]} 20. Ng5 {[%emt 0:04:44]} b4 {[%emt 0:02:13]} 21. cxb4 {[%emt 0:02:55]} axb4 {[%emt 0:00:36]} 22. Qc2 {[%emt 0:01:08]} O-O {[%emt 0:02:13]} 23. Rc1 {[%emt 0:05:30]} c5 {[%emt 0:01:44]} 24. dxc5 {[%emt 0:01:33]} b3 {[%emt 0:01:46]} 25. Qxb3 {[%emt 0:01:12]} Rfb8 {[%emt 0:00:13]} 26. Qc2 {[%emt 0:02:35]} Nc6 {[%emt 0:02:23]} 27. Nf3 {[%emt 0:02:21]} Rxa2 {[%emt 0:03:31]} 28. Kxa2 {[%emt 0:05:11]} Nb4+ {[%emt 0:00:06]} 29. Kb1 {[%emt 0:00:02]} Nxc2 {[%emt 0:00:41]} 30. Rxc2 {[%emt 0:00:05]} Qa7 {[%emt 0:00:48]} 31. Rhc1 {[%emt 0:05:05]} Bh6 {[%emt 0:02:01]} 32. g3 {[%emt 0:02:28]} Rc8 {[%emt 0:01:56]} 33. h4 {[%emt 0:02:49]} Bf8 {[%emt 0:00:23]} 34. c6 {[%emt 0:07:14]} Rc7 {[%emt 0:01:10]} 35. Rc3 {[%emt 0:09:29]} Bb4 {[%emt 0:02:50]} 36. Rb3 {[%emt 0:00:23]} Ba5 {[%emt 0:00:48]} 37. Ra3 {[%emt 0:00:41]} Qb6 {[%emt 0:00:36]} 38. Be2 {[%emt 0:00:37]} Kg7 {[%emt 0:01:15]} 39. Rxa5 {[%emt 0:00:20]} Qxa5 {[%emt 0:00:07]} 40. Nd4 {[%emt 0:00:00]} Ra7 {[%emt 0:00:00]} 41. Nb5 {[%emt 0:00:47]} Qa2+ {[%emt 0:06:35]} 42. Kc2 {[%emt 0:02:29]} Qa4+ {[%emt 0:02:07]} 43. Kd2 {[%emt 0:06:11]} Qb4+ {[%emt 0:00:35]} 44. Kc2 {[%emt 0:00:26]} Ra2 {[%emt 0:01:02]} 45. Rb1 {[%emt 0:00:32]} Qc5+ {[%emt 0:01:46]} 46. Kb3 {[%emt 0:00:45]} Ra5 {[%emt 0:00:20]} 47. Ra1 {[%emt 0:02:55]} Qd4 0-1

[Event "ESCC-65 2022"]
[Site "Lublin"]
[Date "2022.07.09"]
[Round "5.16"]
[White "Sosnowska, Elzbieta"]
[Black "Virtanen, Esko"]
[Result "1-0"]
[ECO "B01"]
[WhiteElo "1726"]
[BlackElo "1709"]
[Annotator "NA RC"]
[PlyCount "73"]
[EventDate "2022.07.05"]
[EventType "swiss"]
[EventCountry "POL"]
[SourceTitle "playchess.com"]
[Source "ChessBase"]
[SourceQuality "1"]
[TimeControl "40/5400+30:1800+30"]

1. e4 {[%emt 0:00:03]} d5 {[%emt 0:00:24]} 2. exd5 {[%emt 0:00:18]} Nf6 {[%emt 0:00:23]} 3. d4 {[%emt 0:00:12]} Nxd5 {[%emt 0:00:28]} 4. Nf3 {[%emt 0:00:10]} g6 {[%emt 0:01:43]} 5. c3 {[%emt 0:00:11]} Bg7 {[%emt 0:00:05]} 6. Bd3 {[%emt 0:00:12]} c6 {[%emt 0:00:30]} 7. O-O {[%emt 0:00:19]} O-O {[%emt 0:00:04]} 8. Re1 {[%emt 0:00:20]} Re8 {[%emt 0:00:10]} 9. Bg5 {[%emt 0:00:24]} h6 {[%emt 0:00:30]} 10. Bh4 {[%emt 0:00:09]} Nf4 {[%emt 0:00:54]} 11. Bc2 {[%emt 0:00:12]} Nd7 {[%emt 0:00:58]} 12. Nbd2 {[%emt 0:00:36]} Nf6 {[%emt 0:00:28]} 13. Bg3 {[%emt 0:00:04]} N4d5 {[%emt 0:02:15]} 14. Ne5 {[%emt 0:02:47]} Qb6 {[%emt 0:01:44]} 15. Ndc4 {[%emt 0:01:53]} Qd8 {[%emt 0:01:24]} 16. h3 {[%emt 0:03:17]} Nb6 {[%emt 0:02:48]} 17. Ne3 {[%emt 0:05:52]} Nfd5 {[%emt 0:04:45]} 18. Nxd5 {[%emt 0:16:22]} cxd5 {[%emt 0:04:14]} 19. Qf3 {[%emt 0:03:15]} Rf8 {[%emt 0:01:30]} 20. Bh4 {[%emt 0:02:15]} Nc4 {[%emt 0:04:45]} 21. Nxc4 {[%emt 0:00:19]} dxc4 {[%emt 0:00:16]} 22. Bxe7 {[%emt 0:00:13]} Qb6 {[%emt 0:00:19]} 23. Bxf8 {[%emt 0:00:36]} Bxf8 {[%emt 0:00:02]} 24. b3 {[%emt 0:01:51]} cxb3 {[%emt 0:02:54]} 25. Bxb3 {[%emt 0:00:23]} Qc7 {[%emt 0:01:53]} 26. Re8 {[%emt 0:01:09]} Kg7 {[%emt 0:00:49]} 27. Rae1 {[%emt 0:00:47]} Rb8 {[%emt 0:00:14]} 28. c4 {[%emt 0:06:20]} b6 {[%emt 0:08:25]} 29. d5 {[%emt 0:03:21]} Bc5 {[%emt 0:05:07]} 30. Qc3+ {[%emt 0:02:39]} f6 {[%emt 0:00:18]} 31. Qf3 {[%emt 0:04:32]} Bd6 {[%emt 0:06:18]} 32. g4 {[%emt 0:05:20]} Qf7 {[%emt 0:05:55]} 33. Qc3 {[%emt 0:11:03]} a5 {[%emt 0:05:04]} 34. Qd4 {[%emt 0:05:03]} Bc5 {[%emt 0:00:25]} 35. Qf4 {[%emt 0:03:43]} Qa7 {[%emt 0:06:16]} 36. d6 {[%emt 0:01:35]} g5 {[%emt 0:02:13]} 37. R1e7+ {[%emt 0:00:26]} 1-0

[Event "ESCC-65 2022"]
[Site "Lublin"]
[Date "2022.07.10"]
[Round "6.1"]
[White "Lederman, Leon"]
[Black "Petran, Peter"]
[Result "1-0"]
[ECO "B06"]
[WhiteElo "2213"]
[BlackElo "2234"]
[Annotator "RC"]
[PlyCount "129"]
[EventDate "2022.07.05"]
[EventType "swiss"]
[EventCountry "POL"]
[SourceTitle "playchess.com"]
[Source "ChessBase"]
[SourceQuality "1"]
[TimeControl "40/5400+30:1800+30"]

1. e4 {[%emt 0:00:07]} g6 {[%emt 0:02:21]} 2. d4 {[%emt 0:00:05]} Bg7 {[%emt 0:00:09]} 3. Nc3 {[%emt 0:00:05]} c6 {[%emt 0:00:06]} 4. f4 {[%emt 0:00:17]} d5 {[%emt 0:00:09]} 5. e5 {[%emt 0:00:03]} Nh6 {[%emt 0:00:06]} 6. Nf3 {[%emt 0:00:10]} f6 {[%emt 0:00:46]} 7. Be3 {[%emt 0:02:49]} Bg4 {[%emt 0:01:02]} 8. Be2 {[%emt 0:00:56]} O-O {[%emt 0:00:41]} 9. O-O {[%emt 0:01:25]} Nf5 {[%emt 0:01:33]} 10. Bf2 {[%emt 0:01:41]} Bxf3 {[%emt 0:00:14]} 11. Bxf3 {[%emt 0:00:09]} fxe5 {[%emt 0:00:03]} 12. fxe5 {[%emt 0:02:18]} e6 {[%emt 0:00:08]} 13. Ne2 {[%emt 0:10:24]} Nd7 {[%emt 0:05:03]} 14. g3 {[%emt 0:10:48]} Bh6 {[%emt 0:10:21]} 15. Qd3 {[%emt 0:01:42]} c5 {[%emt 0:01:26]} 16. c3 {[%emt 0:00:23]} c4 {[%emt 0:01:09]} 17. Qd1 {[%emt 0:00:07]} Qg5 {[%emt 0:08:33]} 18. Nf4 {[%emt 0:05:50]} Qe7 {[%emt 0:00:42]} 19. Ng2 {[%emt 0:00:34]} g5 {[%emt 0:07:59]} 20. Bg4 {[%emt 0:02:48]} Bg7 {[%emt 0:02:39]} 21. Be1 {[%emt 0:01:17]} Nh6 {[%emt 0:02:28]} 22. Bf3 {[%emt 0:09:13]} Rf7 {[%emt 0:00:44]} 23. Bd2 {[%emt 0:00:47]} Raf8 {[%emt 0:00:26]} 24. Qe2 {[%emt 0:00:54]} Rb8 {[%emt 0:10:59]} 25. Qe3 {[%emt 0:06:25]} g4 {[%emt 0:02:49]} 26. Be2 {[%emt 0:00:13]} Nf5 {[%emt 0:00:20]} 27. Qg5 {[%emt 0:00:21]} Qxg5 {[%emt 0:04:33]} 28. Bxg5 {[%emt 0:00:18]} h6 {[%emt 0:00:03]} 29. Bd2 {[%emt 0:00:16]} h5 {[%emt 0:00:15]} 30. Rad1 Bf8 {[%emt 0:07:30]} 31. Nf4 {[%emt 0:01:52]} Ng7 {[%emt 0:00:23]} 32. Rf2 {[%emt 0:03:17]} Be7 {[%emt 0:01:06]} 33. Rdf1 {[%emt 0:00:24]} Bg5 {[%emt 0:01:14]} 34. Bd1 {[%emt 0:01:41]} Bxf4 {[%emt 0:00:17]} 35. Bxf4 {[%emt 0:00:10]} Rbf8 {[%emt 0:05:37]} 36. Bc2 {[%emt 0:15:47]} Nf5 {[%emt 0:01:53]} 37. Kg2 {[%emt 0:08:18]} Kg7 {[%emt 0:04:52]} 38. h3 {[%emt 0:02:07]} gxh3+ {[%emt 0:04:19]} 39. Kxh3 {[%emt 0:00:04]} Kg6 {[%emt 0:00:55]} 40. Kg2 {[%emt 0:00:00]} Nb6 {[%emt 0:00:00]} 41. Rh1 {[%emt 0:04:33]} Nc8 {[%emt 0:04:21]} 42. Kf3 {[%emt 0:00:26]} Nce7 {[%emt 0:01:04]} 43. Rg2 {[%emt 0:01:26]} Rg7 {[%emt 0:11:37]} 44. Ke2 {[%emt 0:12:52]} Rfg8 {[%emt 0:01:52]} 45. Kf2 {[%emt 0:06:26]} h4 {[%emt 0:23:15]} 46. Rxh4 {[%emt 0:01:48]} Kf7 {[%emt 0:00:19]} 47. Rh3 {[%emt 0:01:29]} Ng6 {[%emt 0:00:53]} 48. Bd2 {[%emt 0:04:02]} b5 {[%emt 0:02:55]} 49. Rgh2 {[%emt 0:01:26]} a6 {[%emt 0:00:27]} 50. Rh7 {[%emt 0:00:54]} Rxh7 {[%emt 0:00:47]} 51. Rxh7+ {[%emt 0:00:05]} Rg7 {[%emt 0:00:07]} 52. Rxg7+ {[%emt 0:03:06]} Nxg7 {[%emt 0:00:54]} 53. Kf3 {[%emt 0:00:12]} Ne7 {[%emt 0:01:25]} 54. Kf4 {[%emt 0:01:09]} Ngf5 {[%emt 0:00:31]} 55. Be1 {[%emt 0:03:54]} Kg7 {[%emt 0:00:38]} 56. g4 {[%emt 0:01:33]} Nh6 {[%emt 0:00:01]} 57. Kg5 {[%emt 0:00:10]} Nf7+ {[%emt 0:01:09]} 58. Kh5 {[%emt 0:00:07]} Ng8 {[%emt 0:00:41]} 59. Bh4 {[%emt 0:01:06]} Nh8 {[%emt 0:00:13]} 60. a3 {[%emt 0:02:31]} Nf7 {[%emt 0:00:04]} 61. Bg6 {[%emt 0:00:46]} Kf8 {[%emt 0:01:01]} 62. Bf6 {[%emt 0:00:43]} Nfh6 {[%emt 0:00:44]} 63. Bh7 {[%emt 0:01:25]} Kf7 {[%emt 0:00:18]} 64. g5 {[%emt 0:00:22]} Nxf6+ {[%emt 0:00:48]} 65. exf6 {[%emt 0:00:12]} 1-0

[Event "ESCC-65 2022"]
[Site "Lublin"]
[Date "2022.07.10"]
[Round "6.2"]
[White "Dobosz, Henryk"]
[Black "Renman, Nils-Gustaf"]
[Result "0-1"]
[ECO "D02"]
[WhiteElo "2354"]
[BlackElo "2311"]
[Annotator "RC"]
[PlyCount "94"]
[EventDate "2022.07.05"]
[EventType "swiss"]
[EventCountry "POL"]
[SourceTitle "playchess.com"]
[Source "ChessBase"]
[SourceQuality "1"]
[TimeControl "40/5400+30:1800+30"]

1. d4 {[%emt 0:00:08]} d5 {[%emt 0:00:08]} 2. Nf3 {[%emt 0:01:47]} Nf6 {[%emt 0:00:26]} 3. c4 {[%emt 0:00:10]} c6 {[%emt 0:00:05]} 4. Qc2 {[%emt 0:00:59]} dxc4 {[%emt 0:02:47]} 5. Qxc4 {[%emt 0:00:47]} Bf5 {[%emt 0:00:07]} 6. g3 {[%emt 0:02:25]} e6 {[%emt 0:00:15]} 7. Bg2 {[%emt 0:00:07]} Nbd7 {[%emt 0:00:41]} 8. O-O {[%emt 0:00:29]} Be7 {[%emt 0:00:15]} 9. e3 {[%emt 0:03:52]} O-O {[%emt 0:00:47]} 10. Nc3 {[%emt 0:06:32]} Ne4 {[%emt 0:00:06]} 11. Nd2 {[%emt 0:12:24]} Nxd2 {[%emt 0:12:55]} 12. Bxd2 {[%emt 0:00:09]} e5 {[%emt 0:02:21]} 13. e4 {[%emt 0:14:44]} exd4 {[%emt 0:22:16]} 14. exf5 {[%emt 0:01:02]} dxc3 {[%emt 0:02:18]} 15. Bxc3 {[%emt 0:00:12]} Bf6 {[%emt 0:00:22]} 16. Bb4 {[%emt 0:15:58]} Re8 {[%emt 0:09:46]} 17. Qc2 {[%emt 0:01:42]} Qb6 {[%emt 0:01:16]} 18. Qd2 {[%emt 0:08:29]} a5 {[%emt 0:05:20]} 19. Bc3 {[%emt 0:02:40]} Bxc3 {[%emt 0:00:46]} 20. bxc3 {[%emt 0:00:25]} Rad8 {[%emt 0:05:53]} 21. Qf4 {[%emt 0:02:36]} Nf6 {[%emt 0:10:30]} 22. Rab1 {[%emt 0:00:09]} Qa7 {[%emt 0:00:09]} 23. g4 {[%emt 0:03:20]} h6 {[%emt 0:00:15]} 24. h4 {[%emt 0:00:21]} Qb8 {[%emt 0:01:48]} 25. Qxb8 {[%emt 0:02:47]} Rxb8 {[%emt 0:00:01]} 26. g5 {[%emt 0:00:15]} Nd7 {[%emt 0:00:31]} 27. Rfe1 {[%emt 0:03:22]} Nc5 {[%emt 0:00:44]} 28. Kf1 {[%emt 0:05:48]} f6 {[%emt 0:02:21]} 29. Re3 {[%emt 0:02:57]} Kf8 {[%emt 0:00:58]} 30. Ke2 {[%emt 0:00:23]} Rbd8 {[%emt 0:00:21]} 31. Bf3 {[%emt 0:00:38]} hxg5 {[%emt 0:06:44]} 32. hxg5 {[%emt 0:00:06]} fxg5 {[%emt 0:00:06]} 33. Bh5 {[%emt 0:01:24]} Rxe3+ {[%emt 0:00:49]} 34. fxe3 {[%emt 0:00:09]} Ke7 {[%emt 0:00:14]} 35. Bf3 {[%emt 0:03:49]} Kf6 {[%emt 0:04:58]} 36. Bg4 {[%emt 0:00:09]} Rh8 {[%emt 0:01:14]} 37. Rd1 {[%emt 0:00:49]} Rh2+ {[%emt 0:00:54]} 38. Kf3 {[%emt 0:00:05]} Ke7 {[%emt 0:03:58]} 39. e4 {[%emt 0:03:59]} Nd7 {[%emt 0:00:55]} 40. Rxd7+ {[%emt 0:00:00]} Kxd7 {[%emt 0:00:00]} 41. f6+ {[%emt 0:00:20]} Ke8 {[%emt 0:00:17]} 42. fxg7 {[%emt 0:00:50]} Kf7 {[%emt 0:00:10]} 43. Bc8 {[%emt 0:00:27]} b6 {[%emt 0:01:39]} 44. Bd7 {[%emt 0:00:40]} c5 {[%emt 0:00:08]} 45. a4 {[%emt 0:01:56]} Kxg7 {[%emt 0:00:42]} 46. e5 {[%emt 0:01:42]} Rh4 {[%emt 0:01:59]} 47. Ke3 {[%emt 0:00:18]} Kf8 {[%emt 0:00:14]} 0-1

[Event "ESCC-65 2022"]
[Site "Lublin"]
[Date "2022.07.10"]
[Round "6.3"]
[White "Syre, Christian"]
[Black "Bogdanov, Valentin"]
[Result "0-1"]
[ECO "A45"]
[WhiteElo "2243"]
[BlackElo "2333"]
[Annotator "RC"]
[PlyCount "112"]
[EventDate "2022.07.05"]
[EventType "swiss"]
[EventCountry "POL"]
[SourceTitle "playchess.com"]
[Source "ChessBase"]
[SourceQuality "1"]
[TimeControl "40/5400+30:1800+30"]

1. d4 Nf6 {[%emt 0:00:06]} 2. Bg5 {[%emt 0:00:32]} c6 {[%emt 0:01:31]} 3. Nf3 {[%emt 0:02:49]} Ne4 {[%emt 0:02:33]} 4. Bf4 {[%emt 0:02:54]} d5 {[%emt 0:00:46]} 5. e3 {[%emt 0:00:35]} Bg4 {[%emt 0:01:22]} 6. Be2 {[%emt 0:00:47]} e6 {[%emt 0:02:18]} 7. h3 {[%emt 0:06:30]} Bh5 {[%emt 0:02:50]} 8. Nbd2 {[%emt 0:00:54]} Nxd2 {[%emt 0:01:33]} 9. Qxd2 {[%emt 0:00:21]} Bd6 {[%emt 0:00:32]} 10. O-O {[%emt 0:03:00]} Bxf4 {[%emt 0:02:10]} 11. exf4 {[%emt 0:00:02]} Bxf3 {[%emt 0:00:48]} 12. Bxf3 {[%emt 0:00:05]} O-O {[%emt 0:00:15]} 13. Rfe1 {[%emt 0:00:25]} Nd7 {[%emt 0:01:05]} 14. Re2 {[%emt 0:05:29]} Nb6 {[%emt 0:04:54]} 15. Qd3 {[%emt 0:07:16]} Qf6 {[%emt 0:02:31]} 16. f5 {[%emt 0:03:15]} exf5 {[%emt 0:01:06]} 17. Rae1 {[%emt 0:00:01]} Nc4 {[%emt 0:02:05]} 18. b3 {[%emt 0:01:03]} Nd6 {[%emt 0:00:39]} 19. c4 {[%emt 0:02:03]} Ne4 {[%emt 0:03:19]} 20. cxd5 {[%emt 0:00:24]} cxd5 {[%emt 0:00:09]} 21. Rc2 {[%emt 0:00:48]} Rac8 {[%emt 0:05:35]} 22. Rec1 {[%emt 0:01:06]} Rc6 {[%emt 0:04:24]} 23. Rxc6 {[%emt 0:01:23]} bxc6 {[%emt 0:00:08]} 24. Rc2 {[%emt 0:09:58]} g6 {[%emt 0:03:18]} 25. g3 {[%emt 0:15:48]} Re8 {[%emt 0:04:31]} 26. Bg2 {[%emt 0:01:46]} h5 {[%emt 0:06:22]} 27. Re2 {[%emt 0:12:20]} Re6 {[%emt 0:00:56]} 28. h4 {[%emt 0:05:09]} Qe7 {[%emt 0:02:40]} 29. Bxe4 {[%emt 0:14:35]} fxe4 {[%emt 0:02:36]} 30. Qe3 {[%emt 0:00:12]} Kg7 {[%emt 0:00:57]} 31. Rc2 {[%emt 0:00:34]} Rf6 {[%emt 0:10:39]} 32. f4 {[%emt 0:00:38]} Qa3 {[%emt 0:08:43]} 33. Qc1 {[%emt 0:03:05]} Qa6 {[%emt 0:01:30]} 34. Qf1 {[%emt 0:00:34]} Qb6 {[%emt 0:01:02]} 35. Qf2 {[%emt 0:00:23]} Re6 {[%emt 0:02:08]} 36. Qe3 {[%emt 0:00:01]} a5 {[%emt 0:01:54]} 37. a3 {[%emt 0:00:58]} Re8 {[%emt 0:04:19]} 38. Kf2 {[%emt 0:01:08]} Rb8 {[%emt 0:01:09]} 39. Rc3 {[%emt 0:00:30]} Qb7 {[%emt 0:02:30]} 40. Qd2 {[%emt 0:00:00]} Qd7 {[%emt 0:00:00]} 41. Qd1 {[%emt 0:05:50]} Qh3 {[%emt 0:09:26]} 42. Kg1 {[%emt 0:03:04]} Qe6 {[%emt 0:02:59]} 43. Qc1 {[%emt 0:03:36]} c5 {[%emt 0:04:58]} 44. Qd2 {[%emt 0:02:35]} Qf6 {[%emt 0:08:43]} 45. dxc5 {[%emt 0:05:24]} d4 {[%emt 0:00:08]} 46. Rc4 {[%emt 0:00:31]} Rxb3 {[%emt 0:00:35]} 47. Qxd4 {[%emt 0:00:33]} Rxg3+ {[%emt 0:00:06]} 48. Kf2 {[%emt 0:01:59]} Qxd4+ {[%emt 0:00:21]} 49. Rxd4 {[%emt 0:00:02]} Rc3 {[%emt 0:00:18]} 50. Rxe4 {[%emt 0:00:14]} Rxc5 {[%emt 0:00:07]} 51. Re5 {[%emt 0:04:55]} Rxe5 {[%emt 0:00:29]} 52. fxe5 {[%emt 0:00:02]} a4 {[%emt 0:03:54]} 53. Kg3 {[%emt 0:02:26]} f6 {[%emt 0:00:41]} 54. exf6+ {[%emt 0:00:37]} Kxf6 {[%emt 0:00:08]} 55. Kf4 {[%emt 0:00:15]} g5+ {[%emt 0:00:05]} 56. hxg5+ {[%emt 0:00:11]} Kg6 {[%emt 0:00:05]} 0-1